{"text_format":"3","workbook":"xlsx","n_sheets":5,"sheets":["Информация о Чемпионате","Общая инфраструктура","Рабочее место конкурсантов","Расходные материалы","Лист1"],"read":"whole","date_system":"1900"}

{"sheet":"Информация о Чемпионате","index":0,"n_rows":24,"n_cols":2,"rows_kept":24}
[]
[]
["Компетенция","Администрирование отеля (основная)"]
["Наименование этапа Чемпионата","Региональный этап Чемпионата по профессиональному мастерству \"Профессионалы\" в 2026 г"]
["Субъект РФ (регион проведения)","Республика Карелия"]
["Базовая организация расположения конкурсной площадки","Государственное автономное профессиональное образованительное учреждение Республики Карелия \"Колледж технологии и предпринимательства\""]
["Адрес конкурсной площадки","Республика Карелия, г. Петрозаводск, проспект Александра Невского, 64"]
["Даты проведения","09.02.2026 - 20.02.2026"]
["Главный эксперт","Павлова Татьяна Алексеевна"]
["Электронная почта ГЭ","kovaletatyana@yandex.ru"]
["Телефон ГЭ","8-921-700-69-35"]
["Технический администратор площадки","Кондратьева Анастасия Владимировна"]
["Электронная почта ТАП","liebe06@mail.ru"]
["Моб.телефон ТАП","8-911-416-80-78"]
["Количество конкурсантов (команд)","5 (1)"]
["Количество рабочих мест",5]
["Количество экспертов (ГЭ+ЭН+ИЭ+РГО(итоговый этап)+МЭ(финал)) + ТАП","(1+5+3)+1"]
[]
["ЭН - эксперт-наставник"]
["ГЭ - главный эксперт"]
["ИЭ - индустриальный эксперт"]
["РГО - руководитель группы оценки"]
["МЭ - международный эксперт"]
["ТАП - технический администратор площадки"]

{"sheet":"Общая инфраструктура","index":1,"n_rows":90,"n_cols":8,"rows_kept":90,"merged":[[0,0,0,7],[1,0,1,7],[2,0,2,7],[3,0,3,7],[4,0,4,7],[5,0,5,7],[6,0,6,1],[6,2,6,7],[7,0,7,2],[7,3,7,7],[8,0,8,1],[8,2,8,7],[9,0,9,1],[9,2,9,3],[9,4,9,5],[9,6,9,7],[10,0,10,1],[10,2,10,3],[10,4,10,5],[10,6,10,7],[11,0,11,1],[11,2,11,7],[12,0,12,1],[12,2,12,7],[13,0,13,1],[13,2,13,7],[14,0,14,1],[14,2,14,7],[15,0,15,7],[16,0,16,7],[17,0,17,7],[18,0,18,7],[19,0,19,7],[20,0,20,7],[21,0,21,7],[22,0,22,7],[23,0,23,7],[24,0,24,7],[32,0,32,7],[33,0,33,7],[34,0,34,7],[35,0,35,7],[36,0,36,7],[37,0,37,7],[38,0,38,7],[39,0,39,7],[40,0,40,7],[41,0,41,7],[49,0,49,7],[53,0,53,7],[54,0,54,7],[55,0,55,7],[56,0,56,7],[57,0,57,7],[58,0,58,7],[59,0,59,7],[60,0,60,7],[61,0,61,7],[62,0,62,7],[75,0,75,7],[79,0,79,7],[86,0,86,7],[89,0,89,7]]}
[]
["Инфраструктурный лист для оснащения конкурсной площадки"]
[{"$f":"'Информация о Чемпионате'!B4","v":"Региональный этап Чемпионата по профессиональному мастерству \"Профессионалы\" в 2026 г"}]
["по компетенции"]
[{"$f":"'Информация о Чемпионате'!B3","v":"Администрирование отеля (основная)"}]
["Основная информация о конкурсной площадке:"]
["Субъект Российской Федерации:",null,{"$f":"'Информация о Чемпионате'!B5","v":"Республика Карелия"}]
["Базовая организация расположения конкурсной площадки:",null,null,{"$f":"'Информация о Чемпионате'!B6","v":"Государственное автономное профессиональное образованительное учреждение Республики Карелия \"Колледж технологии и предпринимательства\""}]
["Адрес базовой организации: ",null,{"$f":"'Информация о Чемпионате'!B7","v":"Республика Карелия, г. Петрозаводск, проспект Александра Невского, 64"}]
["Главный эксперт: ",null,{"$f":"'Информация о Чемпионате'!B9","v":"Павлова Татьяна Алексеевна"},null,{"$f":"'Информация о Чемпионате'!B10","v":"kovaletatyana@yandex.ru"},null,{"$f":"'Информация о Чемпионате'!B11","v":"8-921-700-69-35"}]
["Технический администратор площадки: ",null,{"$f":"'Информация о Чемпионате'!B12","v":"Кондратьева Анастасия Владимировна"},null,{"$f":"'Информация о Чемпионате'!B13","v":"liebe06@mail.ru"},null,{"$f":"'Информация о Чемпионате'!B14","v":"8-911-416-80-78"}]
["Количество экспертов (ГЭ+ЭН+ИЭ) + ТАП:",null,{"$f":"'Информация о Чемпионате'!B17","v":"(1+5+3)+1"}]
["Количество конкурсантов (команд): ",null,{"$f":"'Информация о Чемпионате'!B15","v":"5 (1)"}]
["Количество рабочих мест: ",null,{"$f":"'Информация о Чемпионате'!B16","v":5}]
["Даты проведения: ",null,{"$f":"'Информация о Чемпионате'!B8","v":"09.02.2026 - 20.02.2026"}]
["Общая зона конкурсной площадки (оборудование, инструмент, мебель)"]
["Требования к обеспечению зоны (коммуникации, площадь, сети, количество рабочих мест и др.): "]
["Площадь зоны: 319,74 кв.м"]
["Освещение: Допустимо верхнее искусственное освещение"]
["Интернет : Подключение  ноутбуков к беспроводному интернету (с возможностью подключения к проводному интернету) \t"]
["Электричество: 220 подключения к сети  по (220 Вольт и 380 Вольт)\t"]
["Контур заземления для электропитания и сети слаботочных подключений (при необходимости) : не требуется"]
["Покрытие пола: линолеум  - 319,74 м2 на всю зону"]
["Подведение/ отведение ГХВС (при необходимости): не требуется"]
["Подведение сжатого воздуха (при необходимости): не требуется"]
["№","Наименование ","Краткие (рамочные) технические характеристики","Вид","Количество","Единица измерения","Итоговое количество","Рекомендации представителей индустрии (указывается конкретное оборудование)"]
[1,"Микрофонная радиосистема с двумя микрофонами. 2 комплекта батареек на каждый передатчик","Гарантированный радиус действия системы не менее 50м","оборудование",1,"шт",0]
[2,"Микрофонная радиосистема с головным микрофоном и карманным передатчиком 2 комплекта батареек на каждый передатчик","Гарантированный радиус действия системы не менее 50м","оборудование",1,"шт",0]
[3,"Акустическая система комплект","1 колонка мощностью 500 Вт, стойка под колонку, готовый кабель для подключения к микшеру не менее 5 м.","оборудование",1,"шт",0]
[4,"Микшерный пульт","Не менее 4 микрофонных входов","оборудование",1,"шт",0]
[5,"Стол письменный","(800*600*750 мм. ЛДСП).","мебель",1,"шт",3]
[6,"Офисный стул","(Ширина: 54 Глубина: 61 Высота: 80)","мебель",1,"шт",6]
["Комната Конкурсантов (оборудование, инструмент, мебель) (по количеству конкурсантов)"]
["Требования к обеспечению зоны (коммуникации, площадь, сети, количество рабочих мест и др.): "]
["Площадь зоны: не менее 12 кв.м."]
["Освещение: Допустимо верхнее искусственное освещение "]
["Интернет : Подключение  ноутбуков к беспроводному интернету (с возможностью подключения к проводному интернету) \t"]
["Электричество: 220 подключения к сети  по (220 Вольт и 380 Вольт)\t"]
["Контур заземления для электропитания и сети слаботочных подключений (при необходимости) : не требуется"]
["Покрытие пола: ковролин  - 319,74 м2 на всю зону"]
["Подведение/ отведение ГХВС (при необходимости) : не требуется"]
["Подведение сжатого воздуха (при необходимости): не требуется"]
["№","Наименование ","Краткие (рамочные) технические характеристики","Вид","Количество","Единица измерения","Итоговое количество","Рекомендации представителей индустрии (указывается конкретное оборудование)"]
[1,"Стол переговорный модульный","(ШчГ) 500*1200*770 мм. ЛДСП","Мебель",1,"шт ( на 1 раб.место) ",5]
[2,"Офисный стул ","Ширина: 54 Глубина: 61 Высота: 80","Мебель",1,"шт ( на 1 раб.место) ",5]
[3,"Вешалка","Вешалка металлическая, 1700*350 мм",null,1,"шт",1]
[3,"Зеркало ","В полный рост напольное","Мебель",1,"шт ( на 1 раб.место) ",1]
[4,"Запираемый шкафчик (локер)","Ширина :300мм Глубина :500мм Высота :1830мм","Мебель",1,"шт ( на 1 раб.место) ",1]
[5,"Мусорная корзина","10 л.",null,1,null,1]
["Охрана труда и техника безопасности"]
["№","Наименование ","Краткие (рамочные) технические характеристики","Вид","Количество","Единица измерения","Итоговое количество"]
[6,"Огнетушитель","Огнетушитель углекислотный","Охрана труда",1,"шт",{"$f":"E52","v":1}]
[7,"Кулер 19 л (холодная/горячая вода)",null,"Охрана труда",1,"шт",1]
["Комната Экспертов (включая комнату Главного эксперта) (оборудование, инструмент, мебель) (по количеству экспертов)"]
["Требования к обеспечению зоны (коммуникации, площадь, сети, количество рабочих мест и др.): "]
["Площадь зоны: не менее 13 кв.м."]
["Освещение: Допустимо верхнее искусственное освещение "]
["Интернет : Подключение  ноутбуков к беспроводному интернету (с возможностью подключения к проводному интернету) \t"]
["Электричество: 220 подключения к сети  по (220 Вольт и 380 Вольт)\t"]
["Контур заземления для электропитания и сети слаботочных подключений (при необходимости) : не требуется"]
["Покрытие пола: 319,74 м2 линолеум на всю зону"]
["Подведение/ отведение ГХВС (при необходимости) : не требуется"]
["Подведение сжатого воздуха (при необходимости): не требуется"]
["№","Наименование ","Краткие (рамочные) технические характеристики","Вид","Количество","Единица измерения","Итоговое количество","Рекомендации представителей индустрии (указывается конкретное оборудование)"]
[1,"Ноутбук ","4 GB ОЗУ, 1 GB видеокарта, 500 Gb жесткий диск, Windows 7/8/9/10 Microsoft Office","Оборудование IT",1,"шт",1]
[2,"Манипулятор типа мышь","Беспроводная лазерная Logitech B 100","Оборудование IT",1,"шт",1]
[3,"МФУ  Pantum M 6500 Series","Печать, копирование, сканирование (РЕСУРС НЕ МЕНЕЕ 20000 СТР./МЕС.)","Оборудование IT",1,"шт",1]
[4,"Запасной картридж для МФУ","Не менее 2000 стр.","Оборудование IT",1,"шт",1]
[5,"Флэш-накопитель","не менее 2GB","Оборудование IT",1,"шт",{"$f":"E69","v":1}]
[6,"Стол переговорный модульный","600х850х743 мм","Мебель",1,"шт",10]
[7,"Офисный стул ","(Ширина: 54 Глубина: 61 Высота: 80)","Мебель",1,"шт",9]
[8,"Кресло офисное","на колесах с подлокотниками серая обивка, расчитанные на вес не менее 100 кг.","Мебель",1,"шт",1]
[9,"Стеллаж","(ШхГхВ) 2000х500х2000\nметаллический,\n5 полок","Мебель",1,"шт",1]
[11,"Запираемый шкафчик (локер)","Ширина :300мм Глубина :500мм Высота :1830мм","Мебель",1,"шт",2]
[12,"Мусорная корзина","10 л.",null,1,"шт",1]
["Охрана труда и техника безопасности"]
["№","Наименование ","Краткие (рамочные) технические характеристики","Вид","Количество","Единица измерения","Итоговое количество"]
[13,"Огнетушитель","Огнетушитель углекислотный","Охрана труда",1,"шт",{"$f":"E78","v":1}]
[14,"Кулер 19 л (холодная/горячая вода)","19 литров, холодная/горячая вода","Охрана труда",1,"шт",1]
["Комната Актеров"]
["№","Наименование ","Краткие (рамочные) технические характеристики","Вид","Количество","Единица измерения","Итоговое количество","Рекомендации представителей индустрии (указывается конкретное оборудование)"]
[1,"Стол переговорный модульный","600х850х743 мм","мебель",1,"модуль",1]
[2,"Офисный стул","(Ширина: 54 Глубина: 61 Высота: 80)","мебель",1,"шт",5]
[3,"Чемодан модель PH11584 Tour Basic","54см - высота, 35 см  - ширина, красный, 28 литров, на колесах","оборудование",1,"шт",1]
[4,"Сумка дорожная (ручная кладь) Спорт мастер","\t\n42 x 15 x 30, 18 литров, синяя, ручная","оборудование",1,"шт",1]
[5,"Запираемый шкафчик (локер)","Ширина :300мм Глубина :500мм Высота :1830мм","мебель",1,"шт",1]
["Охрана труда и техника безопасности"]
["№","Наименование ","Краткие (рамочные) технические характеристики","Вид","Количество","Единица измерения","Итоговое количество","Рекомендации представителей индустрии (указывается конкретное оборудование)"]
[6,"Кулер 19 л (холодная/горячая вода)","19 литров, холодная/горячая вода","Охрана труда",1,"шт",1]
["Складское помещение не требуется "]

{"sheet":"Рабочее место конкурсантов","index":2,"n_rows":86,"n_cols":8,"rows_kept":86,"merged":[[0,0,0,7],[1,0,1,7],[2,0,2,7],[3,0,3,7],[4,0,4,7],[5,0,5,7],[6,0,6,1],[6,2,6,7],[7,0,7,2],[7,3,7,7],[8,0,8,1],[8,2,8,7],[9,0,9,1],[9,2,9,3],[9,4,9,5],[9,6,9,7],[10,0,10,1],[10,2,10,3],[10,4,10,5],[10,6,10,7],[11,0,11,1],[11,2,11,7],[12,0,12,1],[12,2,12,7],[13,0,13,1],[13,2,13,7],[14,0,14,1],[14,2,14,7],[15,0,15,7],[16,0,16,7],[17,0,17,7],[18,0,18,7],[19,0,19,7],[20,0,20,7],[21,0,21,7],[22,0,22,7],[23,0,23,7],[24,0,24,7],[26,0,26,7],[37,0,37,7],[43,0,43,7],[80,0,80,7],[85,0,85,7]]}
[]
["Инфраструктурный лист для оснащения конкурсной площадки"]
[{"$f":"'Информация о Чемпионате'!B4","v":"Региональный этап Чемпионата по профессиональному мастерству \"Профессионалы\" в 2026 г"}]
["по компетенции"]
[{"$f":"'Информация о Чемпионате'!B3","v":"Администрирование отеля (основная)"}]
["Основная информация о конкурсной площадке:"]
["Субъект Российской Федерации:",null,{"$f":"'Информация о Чемпионате'!B5","v":"Республика Карелия"}]
["Базовая организация расположения конкурсной площадки:",null,null,{"$f":"'Информация о Чемпионате'!B6","v":"Государственное автономное профессиональное образованительное учреждение Республики Карелия \"Колледж технологии и предпринимательства\""}]
["Адрес базовой организации: ",null,{"$f":"'Информация о Чемпионате'!B7","v":"Республика Карелия, г. Петрозаводск, проспект Александра Невского, 64"}]
["Главный эксперт: ",null,{"$f":"'Информация о Чемпионате'!B9","v":"Павлова Татьяна Алексеевна"},null,{"$f":"'Информация о Чемпионате'!B10","v":"kovaletatyana@yandex.ru"},null,{"$f":"'Информация о Чемпионате'!B11","v":"8-921-700-69-35"}]
["Технический администратор площадки: ",null,{"$f":"'Информация о Чемпионате'!B12","v":"Кондратьева Анастасия Владимировна"},null,{"$f":"'Информация о Чемпионате'!B13","v":"liebe06@mail.ru"},null,{"$f":"'Информация о Чемпионате'!B14","v":"8-911-416-80-78"}]
["Количество экспертов (ГЭ+ЭН+ИЭ) + ТАП:",null,{"$f":"'Информация о Чемпионате'!B17","v":"(1+5+3)+1"}]
["Количество конкурсантов (команд): ",null,{"$f":"'Информация о Чемпионате'!B15","v":"5 (1)"}]
["Количество рабочих мест: ",null,{"$f":"'Информация о Чемпионате'!B16","v":5}]
["Даты проведения: ",null,{"$f":"'Информация о Чемпионате'!B8","v":"09.02.2026 - 20.02.2026"}]
["Рабочее место Конкурсанта (основное оборудование, вспомогательное оборудование, инструмент (по количеству рабочих мест)"]
["Требования к обеспечению зоны (коммуникации, площадь, сети, количество рабочих мест и др.): "]
["Площадь зоны: не менее 3 м.кв. на 1 рабочее место (Бэк офис); 42 кв.м. (Фронт офис)"]
["Освещение: Допустимо верхнее искусственное освещение "]
["Интернет : Подключение  ноутбуков к беспроводному интернету (с возможностью подключения к проводному интернету) \t"]
["Электричество: 220 подключения к сети  по (220 Вольт и 380 Вольт)\t"]
["Контур заземления для электропитания и сети слаботочных подключений (при необходимости) : не требуется"]
["Покрытие пола: линолеум на всю зону"]
["Подведение/ отведение ГХВС (при необходимости) : не требуется"]
["Подведение сжатого воздуха (при необходимости): не требуется"]
["№","Наименование ","Краткие (рамочные) технические характеристики","Вид","Количество","Единица измерения","Итоговое количество","Рекомендации представителей индустрии (указывается конкретное оборудование)"]
["Зона Бэк - офис для работ предусмотренных в Модулях обязательных к выполнению (инвариант)  (5 рабочих мест) "]
["№","Наименование ","Краткие (рамочные) технические характеристики","Вид","Количество","Единица измерения","Итоговое количество","Рекомендации представителей индустрии (указывается конкретное оборудование)"]
[1,"Ноутбук","Ноутбук Acer Extensa EX 2519 - POBD15.6 4 ГБ Озу, 500 ГБ\nский диск, 1 ГБ видеокарта, Windows 10 64 x, Microsoft\nOffice","Оборудование IT",1,"шт ( на 1 раб.место) ",5]
[2,"Манипулятор типа мышь","Беспроводная лазерная Logitech B 100",null,1,"шт ( на 1 раб.место) ",5]
[3,"МФУ Pantum M 6500 Series","Черно-белая печать","Оборудование IT",1,"шт ( на 1 раб.место) ",{"$f":"1*E31","v":1}]
[4,"Таймер","Ноутбук Acer Extensa EX 2519 - POBD15.6 4 ГБ Озу, 500 ГБ\nский диск, 1 ГБ видеокарта, Windows 10 64 x, (программа). Обратный отчет, часы, минуты, секунды. ","Оборудование ",1,"шт ( на 1 раб.место) ",{"$f":"1*E32","v":1}]
[5,"Флэш-накопитель","не менее 2 GB","Оборудование",1,"шт",1]
[6,"Офисный пакет приложений. ","Работа с текстами, электронными таблицами, базами данных","программное обеспечение",1,"шт ( на 1 раб.место) ",5]
[7,"Стол письменный ","800*600*750 мм. ЛДСП","Мебель",1,"шт ( на 1 раб.место) ",5]
[8,"Офисный стул","Ширина: 54 Глубина: 61 Высота: 80","Мебель",1,"шт ( на 1 раб.место) ",5]
[10,"Мусорная корзина","10 л.","Оборудование",1,"шт ( на 1 раб.место) ",1]
["Охрана труда и техника безопасности"]
["№","Наименование ","Краткие (рамочные) технические характеристики","Вид","Количество","Единица измерения","Итоговое количество","Рекомендации представителей индустрии (указывается конкретное оборудование)"]
[11,"Огнетушитель","Огнетушитель углекислотный","Охрана труда",1,"шт",{"$f":"E40","v":1}]
[12,"Кулер ","19 л (холодная/горячая вода)","Охрана труда",1,"шт",{"$f":"E41","v":1}]
[13,"Набор первой медицинской помощи","Аптечка для оказания первой помощи \"Мицар\"","Охрана труда",1,"шт",1]
[14,"Спецодежда, спецобувь",null,null,1,"шт","конкурсант привозит с собой"]
["Зона Фронт - офис для работ предусмотренных в Модулях обязательных к выполнению (инвариант)  (1 рабочее место на 5 конкурсантов)  "]
[1,"Ноутбук","Системный блок 4 ГБ ОЗУ, 1 ТБ жесткий диск,\nинтегрированное графиечское ядро IntelHDGraphics 630,\nWindows 10 64 х,Office Монитор Phillips23, 1080 FULL HD","Оборудование",1,"шт",1]
[2,"Манипулятор типа мышь Logitech B 100","Проводная оптическая мыщь (800 т/д)","Оборудование",1,"шт",1]
[3,"Сервер для размещения системы управления гостиницей","Intel(R) Core(TM) i7-8700 CPU @ 3.20GHz","Оборудование",1,"шт",1]
[4,"МФУ Pantum M 6500 Series","МФУ Pantum M 6500 Series, 1200x1200 dpi, 20000 стр.\nПечать, копирование, сканирование","Оборудование",1,"шт",1]
[5,"Терминал для платежных карт\nVeriFone VX510 (USB/RS-232/)","Платежный электронный терминал (неработающее\nустройство)","Оборудование",1,"шт",1]
[6,"Телефон SIEMENS модель Gigaset C200","Радиотелефон на подставке","Оборудование",1,"шт",1]
[11,"ЖК панель \"EDFLAT\", Model: OPS-H510, CPU: I5-10400H, Ram: 8G SSD: 256G","Диагональ 86, интерфейс HDMI","Оборудование",1,"шт",1]
[12,"Мобильная стойка под жк панель","Соответствие по типу крепления и нагрузке с выбранной ЖК панелью; регулируемая по высоте","Оборудование",1,"шт",1]
[13,"Кабель HDMI","Не менее 5 м.","Оборудование",1,"шт",1]
[14,"Флэш-накопитель","не менее 2 GB","Оборудование",1,"шт",1]
[15,"Денежный кассовый ящик \"ЭКР-\n2102\"","410х420х90 мм","Оборудование",1,"шт",1]
[16,"Бокс для подвесных папок","Для папок размера А4","Оборудование",1,"шт",1]
[17,"Подвесная папка/регистратура","Размер А4","Оборудование",1,"шт",12]
[18,"Мини-сейф","Сейф гостиничный мебельный Т - 17. Размеры: ШВГ\n280*170*230мм. Тип покрытия порошковый, серый","Оборудование",1,"шт",1]
[19,"Детектор денежных купюр","Просмотровый или автоматический","Оборудование",1,"шт",1]
[20,"Устройство для имитации телефонного звонка","Колокольчик","Оборудование",1,"шт",1]
[21,"Таймер","Ноутбук Acer Extensa EX 2519 - POBD15.6 4 ГБ Озу, 500 ГБ\nский диск, 1 ГБ видеокарта, Windows 10 64 x, (программа). Обратный отчет, часы, минуты, секунды. ","Оборудование",1,"шт",1]
[22,"Ключи-карта для электронных замков","Магнитная пластиковая","Оборудование",1,"шт",5]
[23,"Кейхолдер","Плотная бумага, карман для карты-ключа","Оборудование",1,"шт",10]
[24,"СИСТЕМА УПРАВЛЕНИЯ ГОСТИНИЦЕЙ (1С: Отель: Управление отелем, редакция 9.0. (9.0.2.4)","Функции: Бронирование, учет заезда и выезда гостей, расчеты. Номерной фонд системы не менее 30 номеров","Оборудование",1,"шт",1,"Доступ к специализированному программному обеспечению (ПО) необходимо предоставить конкурсантам не менее, чем за 15 дней до начала соревновательной части. Доступ к ПО необходимо обеспечить в формате 24/7. На площадке необходим сцециалист, способный установить и настроить ПО. "]
[25,"Стойка администратора","ШхГхВ)1500х1300х300х1200 (высота рабочего стола\nстойки 800).","Оборудование",1,"шт",1]
[26,"Кресло для гостиной","Внутренняя ширина сиденья: 450ммГлубина сиденья: 400мм. Высота спинки: 470мм, Макс. статическая нагрузка, кг: 100, бежевый","Мебель",1,"шт",2]
[27,"Стол журнальный","стекло деревянный, 1075х677х510 мм), светлый ","Мебель",1,"шт",1]
[28,"Шкаф стеллаж для документов полузакрытый","(ШхГхВ) 802x432x1975 мм","Оборудование",1,"шт",1]
[29,"Цветочная композиция из декоративных цветов","Не менее 25 см в высоту","Оборудование",1,"шт",1]
[30,"Зонт -трость","Диаметр купола: 104см;Длина в сложенном виде: 89см","Оборудование",1,"шт",1]
[31,"Подставка для зонтов","Округлой или прямоугольной формы Высота: 450мм, Глубина:250мм Ширина:250мм","Оборудование",1,"шт",1]
[32,"Торшер напольный","металл/пластик, высота 1500 мм, ИКЕА","Оборудование",1,"шт",1]
[33,"Витрина для сувениров","стеллаж","Оборудование",1,"шт",1]
[34,"Сувениры","Любые сувениры Республики Карелия","Оборудование",1,"шт",10]
[35,"Стойка напольная для газет и журналов","Напольная","Оборудование",1,"шт",1]
[36,"Журналы и газеты","Актуальные местные и федеральные издания","Оборудование",1,"шт",5]
[37,"Часы настенные","Серебряные, диаметр 28 см","Оборудование",5,"шт",5]
[38,"Комплект из 5 табличек под часы с названиями городов London, New-York, Tokyo, Moscow, город проведения чемпионата - Петрозаводск","Размер таблички 20x7 см","Оборудование",1,"шт",1]
[39,"Платформа/подставка для участника","Длина не менее 1 м., ширина не менее 60 см., высота от 15 до 25 см","Мебель",1,"шт",1]
[40,"Мусорная корзина","10 л.","Оборудование",1,"шт ( на 1 раб.место) ",1]
["Охрана труда и техника безопасности"]
["№","Наименование ","Краткие (рамочные) технические характеристики","Вид","Количество","Единица измерения","Итоговое количество","Рекомендации представителей индустрии (указывается конкретное оборудование)"]
[41,"Аптечка",null,"Охрана труда",1,"шт",{"$f":"E83","v":1}]
[42,"Огнетушитель","Огнетушитель углекислотный","Охрана труда",1,"шт",{"$f":"E84","v":1}]
[43,"Кулер ","19 л (холодная/горячая вода)","Охрана труда",1,"шт",{"$f":"E85","v":1}]
["1. Зона для работ предусмотренных в вариативном модуле №…..   (5 рабочих мест)  - дополнительно не требуется"]

{"sheet":"Расходные материалы","index":3,"n_rows":46,"n_cols":8,"rows_kept":46,"merged":[[0,0,0,7],[1,0,1,7],[2,0,2,7],[3,0,3,7],[4,0,4,7],[5,0,5,7],[6,0,6,1],[6,2,6,7],[7,0,7,2],[7,3,7,7],[8,0,8,1],[8,2,8,7],[9,0,9,1],[9,2,9,3],[9,4,9,5],[9,6,9,7],[10,0,10,1],[10,2,10,3],[10,4,10,5],[10,6,10,7],[11,0,11,1],[11,2,11,7],[12,0,12,1],[12,2,12,7],[13,0,13,1],[13,2,13,7],[14,0,14,1],[14,2,14,7],[15,0,15,7],[40,0,40,7]]}
[]
["Инфраструктурный лист для оснащения конкурсной площадки"]
[{"$f":"'Информация о Чемпионате'!B4","v":"Региональный этап Чемпионата по профессиональному мастерству \"Профессионалы\" в 2026 г"}]
["по компетенции"]
[{"$f":"'Информация о Чемпионате'!B3","v":"Администрирование отеля (основная)"}]
["Основная информация о конкурсной площадке:"]
["Субъект Российской Федерации:",null,{"$f":"'Информация о Чемпионате'!B5","v":"Республика Карелия"}]
["Базовая организация расположения конкурсной площадки:",null,null,{"$f":"'Информация о Чемпионате'!B6","v":"Государственное автономное профессиональное образованительное учреждение Республики Карелия \"Колледж технологии и предпринимательства\""}]
["Адрес базовой организации: ",null,{"$f":"'Информация о Чемпионате'!B7","v":"Республика Карелия, г. Петрозаводск, проспект Александра Невского, 64"}]
["Главный эксперт: ",null,{"$f":"'Информация о Чемпионате'!B9","v":"Павлова Татьяна Алексеевна"},null,{"$f":"'Информация о Чемпионате'!B10","v":"kovaletatyana@yandex.ru"},null,{"$f":"'Информация о Чемпионате'!B11","v":"8-921-700-69-35"}]
["Технический администратор площадки: ",null,{"$f":"'Информация о Чемпионате'!B12","v":"Кондратьева Анастасия Владимировна"},null,{"$f":"'Информация о Чемпионате'!B13","v":"liebe06@mail.ru"},null,{"$f":"'Информация о Чемпионате'!B14","v":"8-911-416-80-78"}]
["Количество экспертов (ГЭ+ЭН+ИЭ) + ТАП:",null,{"$f":"'Информация о Чемпионате'!B17","v":"(1+5+3)+1"}]
["Количество конкурсантов (команд): ",null,{"$f":"'Информация о Чемпионате'!B15","v":"5 (1)"}]
["Количество рабочих мест: ",null,{"$f":"'Информация о Чемпионате'!B16","v":5}]
["Даты проведения: ",null,{"$f":"'Информация о Чемпионате'!B8","v":"09.02.2026 - 20.02.2026"}]
["Рабочее место Конкурсанта (расходные материалы по количеству конкурсантов)"]
["№","Наименование ","Краткие (рамочные) технические характеристики","Вид","Количество","Единица измерения","Итоговое количество","Рекомендации представителей индустрии (указывается конкретное оборудование)"]
[1,"Папки с кольцами","для бумаг формата А4, не менее 10 отделений","расходные материалы",5,"шт",5,"_"]
[2,"Бумага для орг. техники (формат А4)","Бумага для офисной техники SvetoCopy (А4, марка C, 80 г/кв.м, 500 листов) ","расходные материалы",10,"шт",10,"_"]
[3,"Лотки для бумаг","для бумаги А4, горизонтальные 4 отделения","расходные материалы",3,"шт",3,"_"]
[4,"Стикеры","Блок 100 ЛИСТОВ","расходные материалы",3,"шт",3,"_"]
[5,"Блок для записей 90x90x90 мм белый","90x90x90 мм белый","расходные материалы",1,"шт",1,"_"]
[6,"Файлы ","А4, 100 шт в уп.","расходные материалы",1,"шт",1,"_"]
[7,"Коробка скрепок","33 мм. 100 шт.","расходные материалы",2,"уп",2,"_"]
[8,"Карандаш (механический)","HB","расходные материалы",10,"шт",10,"_"]
[9,"Ластик","42x19x12 мм","расходные материалы",2,"шт",2,"_"]
[10,"Конверт","110*220","расходные материалы",10,"шт",10,"_"]
[11,"Подушка для смачивания пальцев","20 мл.","расходные материалы",1,"шт",1,"_"]
[12,"Ручка шариковая на подставке","Синяя","расходные материалы",1,"шт",1,"_"]
[13,"Стерка","Для удаления карандашных  надписей ","расходные материалы",2,"шт",2]
[14,"Органайзер для канцтоваров","Отделения для ручек, ножниц, степлера, скрепок, скоб","расходные материалы",1,"шт",1,"_"]
[15,"Набор имитационных денежных купюр достоинством 5000, 1000, 500, 100, 50 ","Купюры бумажные матовые","расходные материалы",1,"шт",1,"_"]
[16,"Набор цветных фломастеров 12 цветов","24 цвета","расходные материалы",5,"шт",5,"_"]
[17,"Пюпитр в виде дощечки с зажимом ","для бумаги А4","расходные материалы",11,"шт",11,"_"]
[18,"Набор табличек с цифрами","цифры 0,1,2,3, наличие ручки","расходные материалы",3,"шт",3,"_"]
[19,"Ножницы канцелярские ","215 мм.","расходные материалы",3,"шт",3,"_"]
[20,"Скобы для степлера, упаковка 1000 шт","размер 26/6 ","расходные материалы",3,"шт",3,"_"]
[21,"Степлер","Количество пробиваемых листов:22лист, скобы 26/6, Наличие антистеплера, Глубина закладки бумаги: 60мм","расходные материалы",3,"шт",3,"_"]
[22,"Ручки шариковые","Цвет синий","расходные материалы",20,"шт",20,"_"]
[23,"Блокноты","А6, 30 листов, в клетку","расходные материалы",11,"шт",11,"_"]
["Расходные материалы на всех конкурсантов и экспертов"]
["№","Наименование ","Краткие (рамочные) технические характеристики","Вид","Количество","Единица измерения","Итоговое количество","Рекомендации представителей индустрии (указывается конкретное оборудование)"]
[1,"Бумага для орг. техники (формат А4)","Бумага для офисной техники SvetoCopy (А4, марка C, 80 г/кв.м, 500 листов) ","расходные материалы","_","уп",2,"_"]
[2,"Скобы для степлера, упаковка 1000 шт","размер 26/6 ","расходные материалы","_","шт",2,"_"]
[3,"Степлер","Количество пробиваемых листов:22лист, скобы 26/6, Наличие антистеплера, Глубина закладки бумаги: 60мм","расходные материалы","_","шт",2,"_"]
[4,"Ручки шариковые","Цвет синий","расходные материалы",1,"шт",10,"_"]

{"sheet":"Лист1","index":4,"n_rows":12,"n_cols":7,"rows_kept":12,"merged":[[0,0,0,6],[1,0,1,6],[2,0,2,6],[3,0,3,6],[4,0,4,6]]}
["Инфраструктурный лист для оснащения конкурсной площадки"]
[{"$f":"'Информация о Чемпионате'!B4","v":"Региональный этап Чемпионата по профессиональному мастерству \"Профессионалы\" в 2026 г"}]
["по компетенции"]
[{"$f":"'Информация о Чемпионате'!B3","v":"Администрирование отеля (основная)"}]
["Личный инструмент конкурсанта"]
["№","Наименование ","Краткие (рамочные) технические характеристики","Вид","Количество","Единица измерения","Примечание "]
[1,"нет"]
[2]
[3]
[4]
[5]
[6]